bitfinex/quotes_SOLUSD_20260115
["timestamp","ask_amount","ask_price","bid_price","bid_amount"]
[1768514184700,1.553631,141.97,141.94,8.64574481]
[1768514186088,11.20760255,141.97,141.93,1.5571283]
[1768514186292,1.55425231,141.96,141.93,1.5571283]
[1768514186519,5.68803289,141.96,141.93,1.5571283]
[1768514187917,5.6280329,141.96,141.93,1.5571283]
[1768514188218,5.56803291,141.96,141.93,1.5571283]
[1768514188897,1.40421473,141.96,141.93,1.5571283]
[1768514189096,5.56803291,141.96,141.93,1.5571283]
[1768514189613,12.61243641,141.96,141.93,1.5571283]
[1768514190205,8.44861823,141.96,141.93,1.5571283]
[1768514194317,8.44861823,141.96,141.91,4.16381818]
[1768514194318,1.55425231,141.95,141.91,1.5571283]
[1768514194504,1.49425232,141.94,141.91,1.5571283]
[1768514194707,1.49425232,141.94,141.9,1.7571283]
[1768514194917,4.16381818,141.94,141.9,1.7571283]
[1768514195499,11.20941222,141.94,141.9,1.7571283]
[1768514196315,7.04559404,141.94,141.9,1.7571283]
[1768514196498,11.20941222,141.94,141.9,1.7571283]
[1768514196700,7.04559404,141.94,141.9,1.7571283]
[1768514196924,8.59984635,141.94,141.9,1.7571283]
[1768514199519,1.55425231,141.93,141.9,1.7571283]
[1768514201638,1.55425231,141.93,141.9,8.80427758]
[1768514202009,1.49425232,141.93,141.9,8.80427758]
[1768514202423,1.43425233,141.93,141.9,8.80427758]
[1768514202812,8.48002146,141.93,141.9,1.7571283]
[1768514203002,7.04576913,141.93,141.9,1.7571283]
[1768514203211,7.04576913,141.93,141.9,0.2]
[1768514203418,7.04576913,141.93,141.9,1.7571283]
[1768514204098,2.66818484,141.94,141.9,1.7571283]
[1768514204303,1.55425231,141.93,141.9,1.7571283]
[1768514204527,1.49425232,141.93,141.9,1.7571283]
[1768514205020,1.43425233,141.93,141.9,1.7571283]
[1768514206129,1.43425233,141.93,141.9,0.2]
[1768514209833,1.37425234,141.93,141.9,0.2]
[1768514213834,1.65705956,141.92,141.9,0.2]
[1768514214034,1.59705957,141.92,141.9,0.2]
[1768514215239,7.04624338,141.92,141.9,0.2]
[1768514216137,8.70330294,141.92,141.9,0.2]
[1768514222546,11.37148778,141.92,141.9,0.2]
[1768514223457,1.65705956,141.91,141.9,0.2]
[1768514223750,1.65705956,141.9,141.89,0.2]
[1768514224739,11.37216965,141.91,141.89,0.2]
[1768514225118,1.65705956,141.9,141.89,0.2]
[1768514225318,1.65705956,141.89,141.87,0.2]
[1768514225545,4.26524441,141.89,141.87,0.2]
[1768514227141,7.04820975,141.88,141.87,0.2]
[1768514227337,6.92820977,141.88,141.87,0.2]
[1768514227540,8.58526933,141.88,141.87,0.2]
[1768514229452,8.58526933,141.88,141.86,0.2]
[1768514237259,8.52526934,141.88,141.86,0.2]
[1768514239154,1.65705956,141.87,141.86,0.2]
[1768514239459,6.86820978,141.88,141.86,0.2]
[1768514241460,8.52382506,141.88,141.86,0.2]
[1768514242568,8.52382506,141.88,141.86,1.87242162]
[1768514250674,8.52382506,141.88,141.86,0.2]
[1768514252181,11.1920099,141.88,141.86,0.2]
[1768514252474,21.82595606,141.9,141.87,0.26454139]
[1768514252670,1.53927709,141.93,141.89,0.26454139]
[1768514253070,4.20746193,141.94,141.89,0.26454139]
[1768514253470,28.86623321,141.94,141.89,0.26454139]
[1768514254760,26.19804837,141.94,141.9,2.9336513]
[1768514257079,7.04622322,141.92,141.9,2.9336513]
[1768514259883,7.04622322,141.92,141.9,0.26546646]
[1768514260083,7.04622322,141.92,141.9,2.9336513]
[1768514260477,1.53927709,141.92,141.89,2.66818484]
[1768514261061,1.53927709,141.92,141.89,2.94364403]
[1768514261265,1.53927709,141.92,141.89,0.27545919]
[1768514261479,1.53927709,141.92,141.89,4.44518674]
[1768514262489,19.152818,141.94,141.91,0.27755865]
[1768514262663,7.04545975,141.94,141.92,4.4472862]
[1768514262862,7.04545975,141.94,141.92,4.4172862]
[1768514263076,8.58473684,141.94,141.92,4.13972755]
[1768514264013,8.58473684,141.94,141.91,0.27963399]
[1768514264014,8.58473684,141.94,141.91,4.44936154]
[1768514265386,7.04489726,141.95,141.93,0.28371343]
[1768514265700,19.15038061,141.96,141.93,4.39344098]
[1768514265701,8.58364038,141.96,141.93,4.39344098]
[1768514269105,8.58364038,141.96,141.93,0.22371343]
[1768514270704,1.53927709,141.94,141.91,11.4498787]
[1768514271008,1.57538306,141.93,141.89,12.75450747]
[1768514271211,1.57538306,141.93,141.89,11.45450747]
[1768514271883,8.62113306,141.93,141.89,11.45450747]
[1768514273909,1.57538306,141.92,141.89,11.45450747]
[1768514274100,1.57538306,141.92,141.89,4.40701718]
[1768514276123,1.57538306,141.92,141.89,11.45466984]
[1768514276411,1.57538306,141.92,141.9,4.16972755]
[1768514277811,1.57538306,141.92,141.89,7.28494229]
[1768514277991,1.57538306,141.92,141.9,4.16972755]
[1768514278311,8.62169493,141.92,141.9,4.16972755]
[1768514285401,8.62169493,141.92,141.89,0.23728963]
[1768514285697,8.62169493,141.92,141.9,4.16972755]
[1768514289428,8.62169493,141.92,141.89,0.23728963]
[1768514289614,8.62169493,141.92,141.9,4.16972755]
[1768514290320,8.62169493,141.92,141.89,0.23728963]
[1768514290522,8.62169493,141.92,141.9,4.16972755]
[1768514292112,1.57538306,141.92,141.9,4.16972755]
[1768514295525,1.57538306,141.92,141.89,0.23728963]
[1768514295526,1.57538306,141.95,141.92,0.27645471]
[1768514295821,1.57538306,141.95,141.93,4.16972755]
[1768514299104,1.57538306,141.95,141.92,4.44618226]
[1768514301430,7.04446958,141.96,141.93,0.28597715]
[1768514301431,1.64661865,141.96,141.93,0.28597715]
[1768514301606,1.64661865,141.96,141.93,4.4557047]
[1768514302428,1.64661865,141.96,141.93,4.4257047]
[1768514306029,8.69111461,141.96,141.93,4.4257047]
[1768514307440,21.77845388,141.98,141.93,4.16972755]
[1768514307622,1.59885719,141.95,141.93,4.16972755]
[1768514308836,1.59885719,141.95,141.93,4.13972755]
[1768514311241,17.60872633,141.98,141.93,4.54403408]
[1768514311445,17.60608206,142.0,141.95,4.57403408]
[1768514311748,21.77580961,142.0,141.95,0.40430653]
[1768514311913,21.77580961,142.0,141.95,4.57403408]
[1768514312524,28.81806313,142.0,141.95,4.57403408]
[1768514312933,24.64833558,142.0,141.95,4.57403408]
[1768514313234,1.59885719,141.99,141.95,4.57403408]
[1768514314741,8.64199797,141.99,141.95,4.57403408]
[1768514314931,1.59885719,141.98,141.95,4.57403408]
[1768514315805,1.59885719,141.98,141.95,11.61876615]
[1768514317134,1.59885719,142.0,141.96,0.41095192]
[1768514317434,1.59885719,142.0,141.96,4.58067947]
[1768514318437,8.64160667,141.99,141.96,4.58067947]
[1768514319430,1.59885719,141.98,141.96,4.16972755]
[1768514321334,1.59885719,141.98,141.96,2.6659228]
[1768514322021,1.59885719,141.98,141.95,10.12362906]
[1768514322439,1.59885719,141.98,141.95,7.45770626]
[1768514322635,1.59885719,141.98,141.95,10.12362906]
[1768514322942,8.64166749,141.99,141.96,0.41592133]
[1768514325942,1.59885719,141.98,141.95,0.41969528]
[1768514326126,1.59885719,141.98,141.95,3.08561808]
[1768514326638,1.59885719,141.98,141.95,0.41969528]
[1768514326852,1.59885719,141.98,141.95,3.08561808]
[1768514328939,1.59885719,141.98,141.96,2.6659228]
[1768514329643,1.59885719,141.97,141.95,2.6659228]
[1768514330735,1.59885719,141.96,141.92,7.46935703]
[1768514331038,1.59885719,141.96,141.94,2.6659228]
[1768514331237,8.75662879,141.98,141.95,3.09096187]
[1768514332227,1.71315511,141.97,141.95,2.6659228]
[1768514332635,1.71315511,141.98,141.95,2.6659228]
[1768514332827,1.71315511,141.98,141.95,3.09181704]
[1768514333029,1.71315511,141.98,141.95,2.6659228]
[1768514333552,1.71315511,141.98,141.94,0.42673959]
[1768514333737,1.71315511,141.98,141.95,2.6659228]
[1768514334632,1.71315511,141.97,141.93,7.47314681]
[1768514334842,1.71315511,141.97,141.94,2.6659228]
[1768514335351,1.71315511,141.97,141.94,3.09432407]
[1768514337232,8.75695447,141.97,141.94,3.09432407]
[1768514339476,1.71315511,141.96,141.94,2.6659228]
[1768514339659,1.71315511,141.96,141.93,9.71149438]
[1768514339971,1.71315511,141.96,141.93,2.6659228]
[1768514340374,1.71315511,141.96,141.94,2.6659228]
[1768514341267,1.71315511,141.97,141.94,3.09908485]
[1768514341985,1.71315511,141.97,141.95,2.6659228]
[1768514346085,1.71315511,141.97,141.94,0.43316205]
[1768514346269,1.71315511,141.97,141.95,2.6659228]
[1768514346691,1.71315511,141.97,141.94,0.43316205]
[1768514346986,1.71315511,141.97,141.95,2.6659228]
[1768514348102,1.71315511,141.97,141.94,0.43316205]
[1768514348386,1.71315511,141.97,141.95,2.6659228]
[1768514349194,1.71315511,141.97,141.94,0.43316205]
[1768514349424,1.71315511,141.97,141.95,2.6659228]
[1768514350192,8.75690102,141.97,141.95,2.6659228]
[1768514355581,1.71315511,141.97,141.95,2.6659228]
[1768514358493,1.71315511,141.97,141.94,3.09908485]
[1768514360201,1.71315511,141.98,141.95,3.1121571]
[1768514360387,1.71315511,141.98,141.95,0.4462343]
[1768514360587,1.71315511,141.98,141.95,3.1121571]
[1768514361690,8.74442514,141.99,141.96,3.11337352]
[1768514361905,1.70147022,141.99,141.96,3.08337352]
[1768514364711,1.70147022,141.99,141.96,0.41745072]
[1768514364882,1.70147022,141.99,141.96,3.08337352]
[1768514367684,8.74433614,141.99,141.97,2.6659228]
[1768514367884,8.74433614,141.99,141.96,3.08337352]
[1768514370203,8.7125809,142.0,141.97,0.42315251]
[1768514370387,1.67025195,142.01,141.98,2.6659228]
[1768514370793,7.04200484,142.01,141.98,2.6659228]
[1768514370989,1.67025195,142.0,141.97,0.42315251]
[1768514371196,1.67025195,142.0,141.98,2.6659228]
[1768514372103,1.67025195,142.0,141.97,0.42315251]
[1768514372408,1.67025195,142.0,141.98,2.6659228]
[1768514373805,1.67025195,142.01,141.98,2.6659228]
[1768514374204,8.7120562,142.01,141.97,0.42315251]
[1768514374409,8.7120562,142.01,141.98,2.6659228]
[1768514374739,8.7120562,142.01,141.97,7.46682193]
[1768514375014,8.7120562,142.01,141.98,2.6659228]
[1768514375322,8.7120562,142.01,141.97,7.46682193]
[1768514375485,1.67025195,142.0,141.97,10.13270635]
[1768514376008,8.71200994,142.01,141.98,2.6659228]
[1768514376817,8.71200994,142.01,141.98,2.6359228]
[1768514376995,8.71200994,142.01,141.97,10.13270635]
[1768514377605,1.67025195,142.01,141.97,10.13270635]
[1768514383408,1.67025195,142.01,141.97,11.63123449]
[1768514384625,1.17025195,142.01,141.97,11.63123449]
[1768514388314,1.17025195,142.01,141.98,7.97510887]
[1768514390115,1.17025195,142.01,141.97,7.04358816]
[1768514390317,1.17025195,142.01,141.97,7.97651126]
[1768514391319,1.17025195,142.01,141.98,7.97720671]
[1768514392109,1.17025195,142.01,141.98,6.98797537]
[1768514392408,1.17025195,142.01,141.98,6.49332558]
[1768514392598,1.17025195,142.01,141.98,5.99863855]
[1768514392802,1.17025195,142.01,141.97,4.16445094]
[1768514394509,1.17025195,142.01,141.98,7.04323487]
[1768514394722,1.17025195,142.01,141.97,4.16445094]
[1768514396617,1.17025195,142.01,141.98,7.04323487]
[1768514398131,1.17025195,142.01,141.98,5.38017624]
[1768514398329,1.17025195,142.01,141.97,4.16445094]
[1768514399232,1.71513239,142.03,141.99,4.16445094]
[1768514399435,1.71513239,142.03,141.96,4.16445094]
[1768514399621,1.71513239,142.03,142.0,4.16445094]
[1768514400231,1.71513239,142.02,141.97,7.04374163]
[1768514400436,1.71513239,142.02,141.97,11.20819257]
[1768514400937,1.71513239,142.03,141.99,4.16445094]
[1768514401132,1.71513239,142.03,142.0,4.16445094]
[1768514401317,1.71513239,142.03,141.99,4.16445094]
[1768514401518,1.71513239,142.03,141.98,4.16445094]
[1768514401720,1.71513239,142.03,141.99,7.04274948]
[1768514406539,1.71513239,142.02,141.97,5.46445094]
[1768514408043,1.71513239,142.02,141.98,24.65135933]
[1768514410040,1.71513239,142.02,141.98,28.81581027]
[1768514410940,0.1,142.04,142.0,7.04225352]
[1768514411141,6.78771334,142.08,142.0,24.64788732]
[1768514411343,0.1,142.1,142.06,1.72683872]
[1768514411551,4.26445094,142.1,142.06,1.72683872]
[1768514411734,4.26445094,142.09,142.03,1.72683872]
[1768514411928,4.16445094,142.08,142.03,1.72683872]
[1768514412141,4.16445094,142.07,142.03,1.72683872]
[1768514412333,4.16445094,142.06,142.02,1.72740806]
[1768514412532,7.13791064,142.09,142.01,7.03695398]
[1768514412533,4.16445094,142.05,142.01,8.76436204]
[1768514412737,24.73239301,142.09,142.01,1.72740806]
[1768514412932,4.16445094,142.05,142.01,1.72740806]
[1768514413132,4.16445094,142.05,142.01,8.76907436]
[1768514413334,1.71513239,142.04,142.01,8.76907436]
[1768514418732,1.71513239,142.04,142.0,1.73415826]
[1768514420968,1.71513239,142.04,142.01,7.04175762]
[1768514425366,1.71513239,142.04,142.01,1.72080412]
[1768514426869,1.68113142,142.02,142.0,7.04225352]
[1768514432472,1.68113142,142.01,142.0,7.04225352]
[1768514432784,1.68113142,142.01,141.99,7.04271541]
[1768514434874,1.68113142,142.01,141.98,7.04303727]
[1768514435060,1.68113142,142.0,141.97,7.04343988]
[1768514436884,1.68113142,142.0,141.97,8.73139258]
[1768514441684,1.68113142,142.0,141.97,7.04343988]
[1768514441868,1.68113142,142.0,141.97,8.73139258]
[1768514446176,1.68113142,141.99,141.96,7.04423781]
[1768514446383,1.68113142,141.98,141.95,1.6879527]
[1768514447454,1.68113142,141.98,141.95,8.7324777]
[1768514447692,1.68113142,141.97,141.95,7.044525]
[1768514452766,1.68113142,141.97,141.94,8.73301749]
[1768514453482,2.6656986,141.97,141.93,8.70382076]
[1768514453784,1.69746695,141.96,141.93,8.70382076]
[1768514454585,1.69746695,142.0,141.96,1.65831839]
[1768514454973,1.69746695,142.0,141.96,11.36789651]
[1768514455370,1.63746695,142.0,141.96,11.36789651]
[1768514455877,1.63746695,142.0,141.97,4.32401699]
[1768514457082,1.63746695,142.0,141.97,11.36761094]
[1768514461671,1.63746695,142.0,141.97,8.70191234]
[1768514461886,1.63746695,142.0,141.97,7.04359395]
[1768514462887,1.63746695,142.0,141.97,8.70191234]
[1768514464899,1.57746694,142.0,141.97,8.70191234]
[1768514467499,1.69746695,142.02,141.98,4.32401699]
[1768514471002,1.69746695,142.02,141.98,9.70879274]
[1768514471791,1.69746695,142.01,141.98,9.70879274]
[1768514472716,1.69746695,142.01,141.98,11.36711113]
[1768514474800,1.69746695,142.01,141.98,8.70141253]
[1768514480414,8.73874525,142.02,141.99,1.65831839]
[1768514481710,7.0412783,142.02,141.99,1.65831839]
[1768514481907,1.76913769,142.01,141.99,1.65831839]
[1768514482699,1.76913769,142.0,141.97,7.04359862]
[1768514483016,1.76913769,142.01,141.98,1.72026147]
[1768514483317,1.76913769,142.02,141.99,4.38596007]
[1768514483509,7.04097096,142.03,142.0,1.72026147]
[1768514483510,8.81010865,142.03,142.0,1.72026147]
[1768514483703,8.81010865,142.03,142.0,1.69026148]
[1768514483913,1.76913769,142.03,142.0,4.35596008]
[1768514484092,1.76913769,142.05,142.01,2.6656986]
[1768514484414,1.76913769,142.05,142.01,2.63569861]
[1768514484920,1.76913769,142.04,142.01,2.63569861]
[1768514488213,1.76913769,142.04,142.0,8.8122491]
[1768514488400,1.76913769,142.04,142.01,2.6656986]
[1768514489924,1.76913769,142.04,142.01,4.43612616]
[1768514490420,1.68384398,142.05,142.02,4.43612616]
[1768514490607,1.68384398,142.05,142.02,4.40612618]
[1768514491824,1.68384398,142.05,142.02,11.44725784]
[1768514495706,1.68384398,142.04,142.01,1.77042756]
[1768514495913,1.68384398,142.04,142.01,4.43612616]
[1768514500528,1.68384398,142.04,142.01,1.77042756]
[1768514500713,1.68384398,142.04,142.01,4.43612616]
[1768514502822,1.68384398,142.05,142.02,4.43612616]
[1768514503325,1.68384398,142.05,142.02,5.93198266]
[1768514503513,1.68384398,142.05,142.02,5.90198267]
[1768514504816,1.68384398,142.05,142.02,5.8719827]
[1768514510843,1.68384398,142.05,142.02,4.1615551]
[1768514513547,8.72363747,142.05,142.02,4.1615551]
[1768514514140,8.72363747,142.05,142.02,5.88447831]
[1768514517427,8.72363747,142.05,142.02,1.72292321]
[1768514517842,8.72363747,142.05,142.02,5.88447831]
[1768514524944,8.72363747,142.05,142.02,1.72292321]
[1768514525131,8.72363747,142.05,142.02,5.88447831]
[1768514527853,1.71097294,142.04,142.01,1.72292321]
[1768514528159,1.71097294,142.04,142.01,5.88447831]
[1768514529861,1.71097294,142.04,142.01,12.92612403]
[1768514537972,1.71097294,142.04,142.01,8.76456893]
[1768514538157,1.71097294,142.04,142.01,12.92612403]
[1768514543279,1.71097294,142.04,142.02,5.87236682]
[1768514547380,1.71097294,142.04,142.02,4.1615551]
[1768514552082,8.78688221,142.06,142.03,1.82246582]
[1768514552382,8.78582066,142.08,142.05,4.1615551]
[1768514553979,1.7473743,142.07,142.04,4.1615551]
[1768514554174,1.7473743,142.07,142.04,5.98402092]
[1768514554671,8.78623383,142.07,142.04,1.82246582]
[1768514554978,1.7473743,142.06,142.03,5.98402092]
[1768514555173,1.7473743,142.06,142.03,1.82246582]
[1768514555780,1.7473743,142.06,142.03,5.98402092]
[1768514556894,8.78666767,142.06,142.03,5.98402092]
[1768514557582,8.78666767,142.06,142.03,1.82246582]
[1768514557784,8.78666767,142.06,142.01,8.86411392]
[1768514557785,1.7473743,142.05,142.01,8.86411392]
[1768514557965,1.7473743,142.05,142.01,13.02566902]
[1768514558981,1.7473743,142.04,142.0,4.1615551]
[1768514559287,1.7473743,142.04,142.01,4.1615551]
[1768514559483,1.7473743,142.04,142.01,5.98402092]
[1768514562593,1.7473743,142.04,142.02,4.1615551]
[1768514563273,1.7473743,142.04,142.01,5.98402092]
[1768514565300,1.7473743,142.04,142.01,4.48619331]
[1768514566877,1.7473743,142.04,142.01,1.82246582]
[1768514567194,1.7473743,142.04,142.01,4.48619331]
[1768514570291,1.7473743,142.04,142.01,1.82246582]
[1768514570494,1.7473743,142.04,142.01,4.48619331]
[1768514574998,1.7473743,142.04,142.01,11.52780776]
[1768514583201,1.85826934,142.05,142.02,4.46121737]
[1768514583403,1.85826934,142.08,142.05,1.79748988]
[1768514583610,1.85826934,142.08,142.05,4.46121737]
[1768514585093,8.89662076,142.08,142.05,4.46121737]
[1768514590112,1.85826934,142.07,142.05,4.46121737]
[1768514595449,1.95826934,142.09,142.06,2.66372749]
[1768514595610,1.95826934,142.09,142.06,4.46121737]
[1768514596112,1.95826934,142.09,142.06,2.66372749]
[1768514603625,1.95826934,142.09,142.05,8.83699184]
[1768514603834,1.95826934,142.09,142.06,2.66372749]
[1768514608740,1.95826934,142.09,142.07,2.66372749]
[1768514608938,0.1,142.1,142.08,4.37347217]
[1768514609146,0.1,142.1,142.09,2.66372749]
[1768514609654,2.38683598,142.12,142.09,4.37347217]
[1768514610445,2.38683598,142.12,142.1,4.37347217]
[1768514610639,1.95683598,142.13,142.11,2.66372749]
[1768514610821,1.95683598,142.13,142.09,8.74728525]
[1768514611017,1.85683598,142.12,142.1,2.66372749]
[1768514611230,1.85683598,142.12,142.09,8.74728525]
[1768514611432,1.85683598,142.12,142.1,2.66372749]
[1768514611630,1.85683598,142.12,142.09,8.74728525]
[1768514611819,1.85683598,142.12,142.06,8.74885118]
[1768514612027,1.85683598,142.12,142.07,2.66372749]
[1768514612225,1.85683598,142.12,142.07,4.37347217]
[1768514613346,7.03676921,142.12,142.07,11.412225]
[1768514613533,1.85683598,142.11,142.08,2.66372749]
[1768514616434,1.85683598,142.11,142.07,8.74849751]
[1768514616746,1.85683598,142.11,142.08,2.66372749]
[1768514618856,1.85683598,142.11,142.07,8.74849751]
[1768514619152,1.85683598,142.11,142.08,2.66372749]
[1768514619330,1.85683598,142.11,142.09,2.66372749]
[1768514620148,1.85683598,142.11,142.08,11.4117342]
[1768514621749,8.99287267,142.13,142.1,1.70974468]
[1768514622146,1.95683598,142.13,142.1,4.37347217]
[1768514624048,1.95683598,142.13,142.11,1.70974468]
[1768514624350,0.1,142.13,142.11,1.70974468]
[1768514624537,1.95683598,142.13,142.1,4.37347217]
[1768514625427,0.1,142.13,142.11,1.70974468]
[1768514625759,0.1,142.13,142.11,5.86655849]
[1768514627649,0.1,142.13,142.11,12.90332289]
[1768514629237,1.95683598,142.14,142.11,12.90332289]
[1768514630447,1.95683598,142.14,142.12,4.15681381]
[1768514631055,1.95683598,142.14,142.11,12.90332289]
[1768514632335,1.95683598,142.14,142.12,4.15681381]
[1768514632336,0.1,142.14,142.12,4.15681381]
[1768514632539,1.92824481,142.16,142.13,5.8547182]
[1768514634158,1.92824481,142.16,142.13,1.69790439]
[1768514634651,1.92824481,142.16,142.13,5.8547182]
[1768514642172,1.92824481,142.16,142.14,4.15681381]
[1768514643066,1.92824481,142.16,142.14,5.8547182]
[1768514643265,0.1,142.16,142.14,5.8547182]
[1768514648246,0.1,142.16,142.14,4.15681381]
[1768514648561,1.92824481,142.16,142.13,11.19260765]
[1768514648762,1.92824481,142.16,142.13,12.89051204]
[1768514652977,1.92824481,142.16,142.14,4.15681381]
[1768514653577,1.92824481,142.16,142.13,8.73369823]
[1768514653784,1.92824481,142.16,142.13,12.89051204]
[1768514654358,1.92824481,142.16,142.14,4.15681381]
[1768514654562,0.1,142.18,142.16,1.66048984]
[1768514654774,0.1,142.18,142.16,5.81730365]
[1768514654974,0.1,142.18,142.17,4.15681381]
[1768514655167,1.92824481,142.19,142.17,4.15681381]
[1768514655371,1.92824481,142.19,142.16,12.85159273]
[1768514655653,1.92824481,142.19,142.17,4.15681381]
[1768514656778,1.92824481,142.19,142.17,5.81757173]
[1768514657157,1.92824481,142.19,142.17,4.15681381]
[1768514657850,0.1,142.19,142.17,5.81770346]
[1768514658682,1.92824481,142.19,142.17,5.81770346]
[1768514659380,0.02629995,142.19,142.17,4.15681381]
[1768514659565,7.13239093,142.2,142.17,4.15681381]
[1768514661470,8.88577471,142.2,142.17,5.90414572]
[1768514662989,1.75338378,142.19,142.15,12.93876034]
[1768514663487,1.75338378,142.19,142.15,11.19142843]
[1768514663683,1.75338378,142.19,142.16,1.74733191]
[1768514664477,1.75338378,142.19,142.16,5.90414572]
[1768514668388,8.78629258,142.19,142.16,5.90414572]
[1768514668970,7.0329088,142.19,142.16,5.90414572]
[1768514669163,1.76728652,142.18,142.13,3.06971392]
[1768514669370,24.61501724,142.19,142.12,8.80599347]
[1768514669371,1.76728652,142.16,142.12,8.80599347]
[1768514669696,1.76728652,142.16,142.12,12.96280728]
[1768514670290,1.76728652,142.15,142.12,12.96280728]
[1768514670500,1.70728653,142.15,142.12,12.96280728]
[1768514674092,1.70728653,142.15,142.13,4.15681381]
[1768514674597,1.76728652,142.16,142.14,5.92652773]
[1768514674770,1.76728652,142.17,142.15,5.92652773]
[1768514675278,8.8008077,142.18,142.15,1.76971392]
[1768514675465,8.8008077,142.18,142.15,5.92652773]
[1768514675887,1.76728652,142.17,142.15,5.92652773]
[1768514676997,1.76728652,142.17,142.15,1.76971392]
[1768514677182,1.76728652,142.17,142.15,5.92652773]
[1768514677381,1e-08,142.17,142.15,5.92652773]
[1768514677575,24.61495181,142.19,142.15,5.92652773]
[1768514678981,7.03284337,142.19,142.16,4.15681381]
[1768514679179,7.13258591,142.2,142.16,5.92652773]
[1768514679381,1.76728652,142.19,142.16,5.92652773]
[1768514679890,0.1,142.2,142.18,5.92652773]
[1768514680193,8.89923973,142.21,142.18,5.92652773]
[1768514680366,1.76728652,142.2,142.18,4.15681381]
[1768514680569,1e-08,142.2,142.19,4.15681381]
[1768514680886,1e-08,142.2,142.19,4.12681382]
[1768514681072,7.13195321,142.21,142.19,4.12681382]
[1768514681688,0.1,142.21,142.19,5.89652774]
[1768514681994,7.03155312,142.22,142.19,5.89652774]
[1768514682577,7.46925495,142.22,142.19,1.76971392]
[1768514682898,7.46925495,142.22,142.19,5.92652773]
[1768514685397,7.90461224,142.23,142.2,4.42653378]
[1768514685597,7.90461224,142.23,142.2,4.39653379]
[1768514686879,7.90461224,142.23,142.21,2.65681986]
[1768514686880,0.43900001,142.23,142.21,2.65681986]
[1768514687488,0.43900001,142.23,142.21,4.42653378]
[1768514689000,0.43900001,142.23,142.19,7.03271266]
[1768514689001,0.4593498,142.22,142.19,4.42653378]
[1768514689784,7.92784501,142.23,142.19,4.42653378]
[1768514690605,7.92784501,142.23,142.2,2.65681986]
[1768514690980,7.47018568,142.23,142.21,1.71109098]
[1768514691274,7.47018568,142.23,142.21,1.65109101]
[1768514691704,0.43900001,142.23,142.21,2.65681986]
[1768514692580,7.03053285,142.24,142.21,2.65681986]
[1768514693186,7.03053285,142.24,142.21,4.36791084]
[1768514693385,7.54003799,142.24,142.21,4.36791084]
[1768514693592,7.54003799,142.24,142.21,1.71109098]
[1768514694504,7.53881164,142.23,142.2,4.36791084]
[1768514695392,7.53881164,142.23,142.2,2.65681986]
[1768514695700,0.50637421,142.22,142.19,4.36791084]
[1768514695898,7.53725522,142.23,142.19,1.71109098]
[1768514696093,7.53725522,142.23,142.19,4.36791084]
[1768514696400,7.53725522,142.23,142.2,1.71109098]
[1768514696708,7.53725522,142.23,142.2,4.36791084]
[1768514699806,7.53725522,142.23,142.2,1.71109098]
[1768514701609,0.49737335,142.22,142.19,1.71109098]
[1768514701809,0.49737335,142.22,142.19,4.36791084]
[1768514705008,7.52887259,142.22,142.19,1.71109098]
[1768514706414,7.52887259,142.22,142.19,4.36791084]
[1768514711327,0.49737335,142.22,142.19,11.40073444]
[1768514711510,7.51478581,142.23,142.2,1.71109098]
[1768514711823,7.03059617,142.24,142.21,1.71109098]
[1768514712537,10.1706262,142.25,142.21,1.71109098]
[1768514712820,0.48239754,142.24,142.21,1.71109098]
[1768514714404,7.51279743,142.24,142.21,1.71109098]
[1768514715008,7.51279743,142.24,142.21,4.36791084]
[1768514717827,7.51279743,142.24,142.21,1.71109098]
[1768514718012,7.51279743,142.24,142.21,4.36791084]
[1768514720927,7.02987697,142.25,142.22,1.81069125]
[1768514721129,7.02987697,142.25,142.22,4.43751112]
[1768514721428,7.02987697,142.25,142.21,7.03176647]
[1768514721605,7.02987697,142.25,142.23,2.65681986]
[1768514722006,7.02987697,142.25,142.22,2.65681986]
[1768514722232,7.50104422,142.26,142.22,2.65681986]
[1768514722707,7.52876922,142.26,142.22,2.65681986]
[1768514723031,7.52876922,142.26,142.23,1.81069125]
[1768514723932,7.02956038,142.26,142.24,1.81069125]
[1768514725215,0.59589342,142.28,142.2,9.31806379]
[1768514725428,7.62452692,142.28,142.24,4.46751111]
[1768514725727,10.28134678,142.28,142.24,1.81069125]
[1768514726036,7.62452692,142.28,142.24,4.46751111]
[1768514726706,7.62237961,142.28,142.24,4.46751111]
[1768514728514,7.62237961,142.28,142.25,1.82964353]
[1768514729238,7.62237961,142.28,142.22,7.03115418]
[1768514729239,0.49067885,142.26,142.22,1.82964353]
[1768514729415,0.49067885,142.26,142.23,1.82964353]
[1768514729933,0.49067885,142.27,142.23,1.82964353]
[1768514731328,27.35644014,142.28,142.23,1.82964353]
[1768514731329,7.5180751,142.26,142.23,1.82964353]
[1768514736436,7.02938282,142.26,142.24,1.82964353]
[1768514736638,7.02938282,142.26,142.23,1.82964353]
[1768514736842,7.51330491,142.26,142.23,1.82964353]
[1768514738636,7.51097857,142.27,142.23,1.82964353]
[1768514740147,10.16779843,142.27,142.23,1.82964353]
[1768514743139,7.50753161,142.26,142.23,1.82964353]
[1768514743947,7.02984139,142.26,142.23,1.82964353]